fUST/lending_fUST_20260607
["ID","MTS","AMOUNT","RATE_DAILY","PERIOD"]
[424373222,1780810241000,-500.0,0.00019178,2]
[424373229,1780810241000,-3346.21,0.00019178,2]
[424373231,1780810241000,-1197.87,0.00019178,2]
[424373230,1780810241000,-500.0,0.00019178,2]
[424373227,1780810241000,-500.0,0.00019178,2]
[424373223,1780810241000,-512.95383888,0.00019178,2]
[424373228,1780810241000,-500.0,0.00019178,2]
[424373232,1780810241000,-987.28,0.00019178,2]
[424373220,1780810241000,-500.0,0.00019178,2]
[424373225,1780810241000,-315.71528986,0.00019178,2]
[424373226,1780810241000,-1261.9,0.00019178,2]
[424373224,1780810241000,-500.0,0.00019178,2]
[424373221,1780810241000,-824.31,0.00019178,2]
[424373305,1780810242000,-500.0,0.00019452,2]
[424373309,1780810242000,-500.0,0.00019452,2]
[424373308,1780810242000,-643.09,0.00019452,2]
[424373307,1780810242000,-713.88,0.00019452,2]
[424373306,1780810242000,-1117.6,0.00019452,2]
[424373299,1780810242000,-500.0,0.00019452,2]
[424373303,1780810242000,-1237.16,0.00019452,2]
[424373301,1780810242000,-500.0,0.00019452,2]
[424373304,1780810242000,-500.0,0.00019452,2]
[424373297,1780810242000,-500.0,0.00019452,2]
[424373300,1780810242000,-500.0,0.00019452,2]
[424373311,1780810242000,-1070.19,0.00019452,2]
[424373302,1780810242000,-712.77,0.00019452,2]
[424373310,1780810242000,-633.77,0.00019452,2]
[424373323,1780810242000,-541.79405749,0.00019452,2]
[424373312,1780810242000,-500.0,0.00019452,2]
[424373314,1780810242000,-500.0,0.00019452,2]
[424373315,1780810242000,-1149.92,0.00019452,2]
[424373316,1780810242000,-500.0,0.00019452,2]
[424373317,1780810242000,-500.0,0.00019452,2]
[424373319,1780810242000,-500.0,0.00019452,2]
[424373318,1780810242000,-500.0,0.00019452,2]
[424373320,1780810242000,-500.0,0.00019452,2]
[424373321,1780810242000,-500.0,0.00019452,2]
[424373322,1780810242000,-1876.79,0.00019452,2]
[424373324,1780810242000,-500.0,0.00019452,2]
[424373327,1780810242000,-500.0,0.00019452,2]
[424373325,1780810242000,-889.26,0.00019452,2]
[424373298,1780810242000,-1251.62,0.00019452,2]
[424373313,1780810242000,-501.25,0.00019452,2]
[424373294,1780810242000,-500.0,0.00019452,2]
[424373268,1780810242000,-500.0,0.00019452,2]
[424373295,1780810242000,-500.0,0.00019452,2]
[424373264,1780810242000,-500.0,0.00019452,2]
[424373263,1780810242000,-895.93,0.00019452,2]
[424373266,1780810242000,-500.0,0.00019452,2]
[424373265,1780810242000,-554.49,0.00019452,2]
[424373326,1780810242000,-1905.12,0.00019452,2]
[424373270,1780810242000,-500.0,0.00019452,2]
[424373267,1780810242000,-683.26,0.00019452,2]
[424373269,1780810242000,-500.0,0.00019452,2]
[424373272,1780810242000,-500.0,0.00019452,2]
[424373271,1780810242000,-500.0,0.00019452,2]
[424373279,1780810242000,-307.06666832,0.00019452,2]
[424373273,1780810242000,-500.0,0.00019452,2]
[424373277,1780810242000,-541.48,0.00019452,2]
[424373275,1780810242000,-744.57,0.00019452,2]
[424373296,1780810242000,-1718.39,0.00019452,2]
[424373278,1780810242000,-500.0,0.00019452,2]
[424373281,1780810242000,-649.0,0.00019452,2]
[424373283,1780810242000,-500.0,0.00019452,2]
[424373282,1780810242000,-500.0,0.00019452,2]
[424373280,1780810242000,-500.69,0.00019452,2]
[424373284,1780810242000,-1133.13,0.00019452,2]
[424373287,1780810242000,-500.0,0.00019452,2]
[424373286,1780810242000,-500.0,0.00019452,2]
[424373285,1780810242000,-500.0,0.00019452,2]
[424373289,1780810242000,-500.0,0.00019452,2]
[424373288,1780810242000,-521.96,0.00019452,2]
[424373291,1780810242000,-500.0,0.00019452,2]
[424373290,1780810242000,-1018.68,0.00019452,2]
[424373293,1780810242000,-1387.99,0.00019452,2]
[424373292,1780810242000,-500.0,0.00019452,2]
[424373274,1780810242000,-500.0,0.00019452,2]
[424373328,1780810242000,-500.0,0.00019452,2]
[424373276,1780810242000,-500.0,0.00019452,2]
[424373329,1780810242000,-500.0,0.00019452,2]
[424373365,1780810242000,-500.0,0.00019452,2]
[424373367,1780810242000,-500.0,0.00019452,2]
[424373368,1780810242000,-540.82,0.00019452,2]
[424373370,1780810242000,-500.0,0.00019452,2]
[424373369,1780810242000,-500.0,0.00019452,2]
[424373371,1780810242000,-500.0,0.00019452,2]
[424373373,1780810242000,-500.0,0.00019452,2]
[424373372,1780810242000,-500.0,0.00019452,2]
[424373374,1780810242000,-500.0,0.00019452,2]
[424373375,1780810242000,-507.53,0.00019452,2]
[424373377,1780810242000,-669.05,0.00019452,2]
[424373379,1780810242000,-500.0,0.00019452,2]
[424373378,1780810242000,-500.0,0.00019452,2]
[424373381,1780810242000,-500.0,0.00019452,2]
[424373366,1780810242000,-629.01,0.00019452,2]
[424373380,1780810242000,-3168.57,0.00019452,2]
[424373390,1780810242000,-500.0,0.00019452,2]
[424373387,1780810242000,-500.0,0.00019452,2]
[424373385,1780810242000,-500.0,0.00019452,2]
[424373383,1780810242000,-3492.66,0.00019452,2]
[424373388,1780810242000,-500.0,0.00019452,2]
[424373392,1780810242000,-500.0,0.00019452,2]
[424373394,1780810242000,-500.0,0.00019452,2]
[424373396,1780810242000,-500.0,0.00019452,2]
[424373399,1780810242000,-500.0,0.00019452,2]
[424373401,1780810242000,-751.05,0.00019452,2]
[424373400,1780810242000,-500.0,0.00019452,2]
[424373402,1780810242000,-500.0,0.00019452,2]
[424373403,1780810242000,-500.0,0.00019452,2]
[424373330,1780810242000,-612.48,0.00019452,2]
[424373382,1780810242000,-500.0,0.00019452,2]
[424373364,1780810242000,-500.0,0.00019452,2]
[424373398,1780810242000,-500.0,0.00019452,2]
[424373361,1780810242000,-500.86,0.00019452,2]
[424373363,1780810242000,-1635.28,0.00019452,2]
[424373331,1780810242000,-500.0,0.00019452,2]
[424373333,1780810242000,-873.52,0.00019452,2]
[424373334,1780810242000,-500.0,0.00019452,2]
[424373335,1780810242000,-500.0,0.00019452,2]
[424373336,1780810242000,-2781.01,0.00019452,2]
[424373338,1780810242000,-500.0,0.00019452,2]
[424373337,1780810242000,-500.0,0.00019452,2]
[424373339,1780810242000,-500.0,0.00019452,2]
[424373340,1780810242000,-1492.81,0.00019452,2]
[424373341,1780810242000,-500.0,0.00019452,2]
[424373342,1780810242000,-538.17153644,0.00019452,2]
[424373345,1780810242000,-1092.87,0.00019452,2]
[424373344,1780810242000,-500.0,0.00019452,2]
[424373343,1780810242000,-500.0,0.00019452,2]
[424373332,1780810242000,-500.0,0.00019452,2]
[424373346,1780810242000,-500.0,0.00019452,2]
[424373347,1780810242000,-2610.31,0.00019452,2]
[424373360,1780810242000,-500.0,0.00019452,2]
[424373358,1780810242000,-515.22,0.00019452,2]
[424373355,1780810242000,-444.96020964,0.00019452,2]
[424373357,1780810242000,-500.0,0.00019452,2]
[424373354,1780810242000,-500.0,0.00019452,2]
[424373356,1780810242000,-500.0,0.00019452,2]
[424373359,1780810242000,-500.0,0.00019452,2]
[424373352,1780810242000,-500.0,0.00019452,2]
[424373351,1780810242000,-500.0,0.00019452,2]
[424373349,1780810242000,-500.0,0.00019452,2]
[424373350,1780810242000,-500.0,0.00019452,2]
[424373353,1780810242000,-711.49,0.00019452,2]
[424373348,1780810242000,-500.0,0.00019452,2]
[424373448,1780810243000,-167.03211698,0.00019452,2]
[424373449,1780810243000,-332.96788302,0.00019452,2]
[424373447,1780810243000,-518.08,0.00019452,2]
[424373444,1780810243000,-1070.91,0.00019452,2]
[424373437,1780810243000,-500.0,0.00019452,2]
[424373441,1780810243000,-235.40905298,0.00019452,2]
[424373442,1780810243000,-1000.0,0.00019452,2]
[424373446,1780810243000,-1760.85639568,0.00019452,2]
[424373434,1780810243000,-500.0,0.00019452,2]
[424373443,1780810243000,-500.0,0.00019452,2]
[424373445,1780810243000,-106.21360432,0.00019452,2]
[424373457,1780810243000,-462.08620676,0.00019452,2]
[424373450,1780810243000,-500.0,0.00019452,2]
[424373452,1780810243000,-500.0,0.00019452,2]
[424373455,1780810243000,-500.0,0.00019452,2]
[424373456,1780810243000,-620.43,0.00019452,2]
[424373454,1780810243000,-500.0,0.00019452,2]
[424373458,1780810243000,-37.91379324,0.00019452,2]
[424373459,1780810243000,-1207.92,0.00019452,2]
[424373461,1780810243000,-631.00150612,0.00019452,2]
[424373460,1780810243000,-1123.12,0.00019452,2]
[424373440,1780810243000,-500.0,0.00019452,2]
[424373462,1780810243000,-500.0,0.00019452,2]
[424373451,1780810243000,-500.0,0.00019452,2]
[424373438,1780810243000,-500.0,0.00019452,2]
[424373423,1780810243000,-708.47,0.00019452,2]
[424373435,1780810243000,-1007.46,0.00019452,2]
[424373464,1780810243000,-638.57757441,0.00019452,2]
[424373405,1780810243000,-4602.99,0.00019452,2]
[424373404,1780810243000,-500.0,0.00019452,2]
[424373406,1780810243000,-500.0,0.00019452,2]
[424373407,1780810243000,-596.72,0.00019452,2]
[424373408,1780810243000,-500.0,0.00019452,2]
[424373410,1780810243000,-1177.88,0.00019452,2]
[424373412,1780810243000,-500.0,0.00019452,2]
[424373414,1780810243000,-558.97236799,0.00019452,2]
[424373415,1780810243000,-500.0,0.00019452,2]
[424373417,1780810243000,-500.0,0.00019452,2]
[424373439,1780810243000,-500.0,0.00019452,2]
[424373422,1780810243000,-500.0,0.00019452,2]
[424373419,1780810243000,-520.66,0.00019452,2]
[424373424,1780810243000,-996.16,0.00019452,2]
[424373420,1780810243000,-500.0,0.00019452,2]
[424373426,1780810243000,-6531.08,0.00019452,2]
[424373429,1780810243000,-500.0,0.00019452,2]
[424373428,1780810243000,-1853.24,0.00019452,2]
[424373431,1780810243000,-500.0,0.00019452,2]
[424373430,1780810243000,-500.0,0.00019452,2]
[424373433,1780810243000,-500.0,0.00019452,2]
[424373432,1780810243000,-610.13141401,0.00019452,2]
[424373436,1780810243000,-903.59,0.00019452,2]
[424373421,1780810243000,-869.21,0.00019452,2]
[424373463,1780810243000,-500.0,0.00019452,2]
[424373469,1780810243000,-500.0,0.00019452,2]
[424373465,1780810243000,-1847.6,0.00019452,2]
[424373498,1780810243000,-500.0,0.00019452,2]
[424373499,1780810243000,-566.72371918,0.00019452,2]
[424373497,1780810243000,-500.0,0.00019452,2]
[424373500,1780810243000,-765.01,0.00019452,2]
[424373502,1780810243000,-500.0,0.00019452,2]
[424373501,1780810243000,-500.0,0.00019452,2]
[424373504,1780810243000,-500.0,0.00019452,2]
[424373503,1780810243000,-500.0,0.00019452,2]
[424373506,1780810243000,-500.0,0.00019452,2]
[424373505,1780810243000,-4038.31,0.00019452,2]
[424373507,1780810243000,-644.59,0.00019452,2]
[424373495,1780810243000,-1086.15,0.00019452,2]
[424373509,1780810243000,-1361.0,0.00019452,2]
[424373510,1780810243000,-1161.39,0.00019452,2]
[424373511,1780810243000,-500.0,0.00019452,2]
[424373513,1780810243000,-1105.86,0.00019452,2]
[424373515,1780810243000,-508.11306112,0.00019452,2]
[424373514,1780810243000,-500.0,0.00019452,2]
[424373518,1780810243000,-959.06,0.00019452,2]
[424373516,1780810243000,-17679.53,0.00019452,2]
[424373517,1780810243000,-500.0,0.00019452,2]
[424373520,1780810243000,-841.74,0.00019452,2]
[424373519,1780810243000,-1726.34,0.00019452,2]
[424373466,1780810243000,-1961.15,0.00019452,2]
[424373512,1780810243000,-7693.23,0.00019452,2]
[424373494,1780810243000,-500.0,0.00019452,2]
[424373508,1780810243000,-500.0,0.00019452,2]
[424373492,1780810243000,-500.0,0.00019452,2]
[424373496,1780810243000,-1073.11,0.00019452,2]
[424373467,1780810243000,-1425.47,0.00019452,2]
[424373470,1780810243000,-500.0,0.00019452,2]
[424373472,1780810243000,-533.98,0.00019452,2]
[424373471,1780810243000,-3515.62,0.00019452,2]
[424373473,1780810243000,-500.0,0.00019452,2]
[424373475,1780810243000,-500.0,0.00019452,2]
[424373474,1780810243000,-1438.96,0.00019452,2]
[424373476,1780810243000,-500.0,0.00019452,2]
[424373477,1780810243000,-500.0,0.00019452,2]
[424373479,1780810243000,-500.0,0.00019452,2]
[424373478,1780810243000,-556.0,0.00019452,2]
[424373468,1780810243000,-1698.38,0.00019452,2]
[424373493,1780810243000,-3274.59,0.00019452,2]
[424373480,1780810243000,-687.75,0.00019452,2]
[424373488,1780810243000,-500.0,0.00019452,2]
[424373490,1780810243000,-371.14363307,0.00019452,2]
[424373491,1780810243000,-876.93,0.00019452,2]
[424373486,1780810243000,-1890.65,0.00019452,2]
[424373489,1780810243000,-500.0,0.00019452,2]
[424373483,1780810243000,-2223.54,0.00019452,2]
[424373481,1780810243000,-500.0,0.00019452,2]
[424373484,1780810243000,-500.0,0.00019452,2]
[424373485,1780810243000,-500.0,0.00019452,2]
[424373487,1780810243000,-626.78,0.00019452,2]
[424373556,1780810244000,-500.0,0.00019452,2]
[424373562,1780810244000,-500.0,0.00019452,2]
[424373563,1780810244000,-10928.99,0.00019452,2]
[424373564,1780810244000,-500.0,0.00019452,2]
[424373558,1780810244000,-500.0,0.00019452,2]
[424373546,1780810244000,-500.0,0.00019452,2]
[424373552,1780810244000,-500.0,0.00019452,2]
[424373553,1780810244000,-823.66,0.00019452,2]
[424373548,1780810244000,-6412.99,0.00019452,2]
[424373560,1780810244000,-545.58,0.00019452,2]
[424373549,1780810244000,-500.0,0.00019452,2]
[424373554,1780810244000,-500.0,0.00019452,2]
[424373567,1780810244000,-1827.35,0.00019452,2]
[424373573,1780810244000,-560.18858582,0.00019452,2]
[424373566,1780810244000,-500.0,0.00019452,2]
[424373568,1780810244000,-500.0,0.00019452,2]
[424373570,1780810244000,-1984.26,0.00019452,2]
[424373569,1780810244000,-500.0,0.00019452,2]
[424373572,1780810244000,-500.0,0.00019452,2]
[424373571,1780810244000,-4926.74,0.00019452,2]
[424373574,1780810244000,-500.0,0.00019452,2]
[424373575,1780810244000,-500.0,0.00019452,2]
[424373576,1780810244000,-637.68,0.00019452,2]
[424373577,1780810244000,-500.0,0.00019452,2]
[424373579,1780810244000,-500.0,0.00019452,2]
[424373565,1780810244000,-500.0,0.00019452,2]
[424373551,1780810244000,-500.0,0.00019452,2]
[424373523,1780810244000,-500.0,0.00019452,2]
[424373540,1780810244000,-500.0,0.00019452,2]
[424373578,1780810244000,-505.94813871,0.00019452,2]
[424373521,1780810244000,-962.46,0.00019452,2]
[424373524,1780810244000,-500.0,0.00019452,2]
[424373526,1780810244000,-546.80791146,0.00019452,2]
[424373525,1780810244000,-1271.53,0.00019452,2]
[424373522,1780810244000,-3621.21,0.00019452,2]
[424373528,1780810244000,-1175.93,0.00019452,2]
[424373527,1780810244000,-500.0,0.00019452,2]
[424373530,1780810244000,-500.0,0.00019452,2]
[424373529,1780810244000,-500.0,0.00019452,2]
[424373531,1780810244000,-3433.46,0.00019452,2]
[424373533,1780810244000,-1283.66,0.00019452,2]
[424373537,1780810244000,-658.17,0.00019452,2]
[424373532,1780810244000,-151.53671076,0.00019452,2]
[424373543,1780810244000,-500.0,0.00019452,2]
[424373545,1780810244000,-5699.37,0.00019452,2]
[424373539,1780810244000,-551.63,0.00019452,2]
[424373544,1780810244000,-500.0,0.00019452,2]
[424373547,1780810244000,-910.7,0.00019452,2]
[424373535,1780810244000,-500.0,0.00019452,2]
[424373534,1780810244000,-500.0,0.00019452,2]
[424373538,1780810244000,-500.0,0.00019452,2]
[424373542,1780810244000,-500.0,0.00019452,2]
[424373536,1780810244000,-3018.26,0.00019452,2]
[424373550,1780810244000,-232.49333459,0.00019452,2]
[424373541,1780810244000,-500.0,0.00019452,2]
[424373580,1780810244000,-8134.73,0.00019452,2]
[424373635,1780810244000,-500.0,0.00019452,2]
[424373583,1780810244000,-500.0,0.00019452,2]
[424373613,1780810244000,-670.44,0.00019452,2]
[424373615,1780810244000,-500.0,0.00019452,2]
[424373614,1780810244000,-6460.66,0.00019452,2]
[424373616,1780810244000,-500.0,0.00019452,2]
[424373621,1780810244000,-500.0,0.00019452,2]
[424373617,1780810244000,-500.0,0.00019452,2]
[424373618,1780810244000,-8342.1,0.00019452,2]
[424373620,1780810244000,-860.65,0.00019452,2]
[424373619,1780810244000,-1024.92,0.00019452,2]
[424373623,1780810244000,-500.0,0.00019452,2]
[424373622,1780810244000,-3819.18,0.00019452,2]
[424373624,1780810244000,-576.71,0.00019452,2]
[424373627,1780810244000,-1083.34,0.00019452,2]
[424373626,1780810244000,-500.0,0.00019452,2]
[424373628,1780810244000,-500.0,0.00019452,2]
[424373629,1780810244000,-500.0,0.00019452,2]
[424373630,1780810244000,-3348.34,0.00019452,2]
[424373632,1780810244000,-263.87596993,0.00019452,2]
[424373631,1780810244000,-1330.13,0.00019452,2]
[424373634,1780810244000,-824.31,0.00019452,2]
[424373638,1780810244000,-500.0,0.00019452,2]
[424373633,1780810244000,-500.0,0.00019452,2]
[424373637,1780810244000,-1261.9,0.00019452,2]
[424373636,1780810244000,-500.0,0.00019452,2]
[424373581,1780810244000,-690.38,0.00019452,2]
[424373612,1780810244000,-500.0,0.00019452,2]
[424373610,1780810244000,-748.4,0.00019452,2]
[424373625,1780810244000,-3567.22,0.00019452,2]
[424373608,1780810244000,-500.0,0.00019452,2]
[424373611,1780810244000,-1367.81,0.00019452,2]
[424373582,1780810244000,-500.0,0.00019452,2]
[424373585,1780810244000,-75958.5,0.00019452,2]
[424373584,1780810244000,-500.0,0.00019452,2]
[424373586,1780810244000,-500.0,0.00019452,2]
[424373588,1780810244000,-500.0,0.00019452,2]
[424373590,1780810244000,-500.0,0.00019452,2]
[424373589,1780810244000,-500.0,0.00019452,2]
[424373592,1780810244000,-500.0,0.00019452,2]
[424373591,1780810244000,-2416.07,0.00019452,2]
[424373594,1780810244000,-5097.99,0.00019452,2]
[424373587,1780810244000,-500.0,0.00019452,2]
[424373596,1780810244000,-500.0,0.00019452,2]
[424373593,1780810244000,-4390.62,0.00019452,2]
[424373599,1780810244000,-500.0,0.00019452,2]
[424373609,1780810244000,-4311.01,0.00019452,2]
[424373606,1780810244000,-500.0,0.00019452,2]
[424373607,1780810244000,-1952.95,0.00019452,2]
[424373605,1780810244000,-500.0,0.00019452,2]
[424373600,1780810244000,-500.0,0.00019452,2]
[424373604,1780810244000,-173.19510947,0.00019452,2]
[424373602,1780810244000,-398.37490939,0.00019452,2]
[424373601,1780810244000,-2209.43,0.00019452,2]
[424373598,1780810244000,-500.0,0.00019452,2]
[424373597,1780810244000,-322.4442419,0.00019452,2]
[424373595,1780810244000,-500.0,0.00019452,2]
[424373603,1780810244000,-500.0,0.00019452,2]
[424373679,1780810245000,-500.0,0.00019726,2]
[424373678,1780810245000,-649.0,0.00019726,2]
[424373683,1780810245000,-500.0,0.00019726,2]
[424373682,1780810245000,-500.0,0.00019726,2]
[424373681,1780810245000,-1133.13,0.00019726,2]
[424373680,1780810245000,-500.0,0.00019726,2]
[424373672,1780810245000,-500.0,0.00019726,2]
[424373675,1780810245000,-541.48,0.00019726,2]
[424373674,1780810245000,-203.03269984,0.00019726,2]
[424373676,1780810245000,-500.0,0.00019726,2]
[424373673,1780810245000,-744.57,0.00019726,2]
[424373684,1780810245000,-500.0,0.00019726,2]
[424373677,1780810245000,-500.69,0.00019726,2]
[424373686,1780810245000,-500.0,0.00019726,2]
[424373702,1780810245000,-500.0,0.00019726,2]
[424373685,1780810245000,-521.96,0.00019726,2]
[424373689,1780810245000,-500.0,0.00019726,2]
[424373687,1780810245000,-1018.68,0.00019726,2]
[424373690,1780810245000,-1387.99,0.00019726,2]
[424373692,1780810245000,-500.0,0.00019726,2]
[424373693,1780810245000,-1718.39,0.00019726,2]
[424373694,1780810245000,-500.0,0.00019726,2]
[424373691,1780810245000,-500.0,0.00019726,2]
[424373695,1780810245000,-1251.62,0.00019726,2]
[424373697,1780810245000,-500.0,0.00019726,2]
[424373696,1780810245000,-500.0,0.00019726,2]
[424373698,1780810245000,-500.0,0.00019726,2]
[424373701,1780810245000,-500.0,0.00019726,2]
[424373671,1780810245000,-500.0,0.00019726,2]
[424373688,1780810245000,-500.0,0.00019726,2]
[424373669,1780810245000,-549.29988767,0.00019726,2]
[424373642,1780810245000,-1197.87,0.00019452,2]
[424373670,1780810245000,-500.0,0.00019726,2]
[424373643,1780810245000,-987.28,0.00019452,2]
[424373641,1780810245000,-290.8546894,0.00019452,2]
[424373640,1780810245000,-500.0,0.00019452,2]
[424373699,1780810245000,-712.77,0.00019726,2]
[424373645,1780810245000,-500.0,0.00019452,2]
[424373639,1780810245000,-3346.21,0.00019452,2]
[424373644,1780810245000,-500.0,0.00019452,2]
[424373648,1780810245000,-160.0,0.00019553,2]
[424373646,1780810245000,-281.72220446,0.00019476,2]
[424373649,1780810245000,-1364.7599149,0.00019554,2]
[424373647,1780810245000,-160.0,0.00019537,2]
[424373650,1780810245000,-186.10907434,0.00019566,2]
[424373651,1780810245000,-300.0,0.00019589,3]
[424373655,1780810245000,-3230.9196,0.00019726,2]
[424373652,1780810245000,-169.08618077,0.000196,2]
[424373656,1780810245000,-165.44433332,0.00019726,2]
[424373654,1780810245000,-444.0,0.00019708,2]
[424373653,1780810245000,-186.0,0.00019708,2]
[424373658,1780810245000,-664.72,0.00019726,2]
[424373657,1780810245000,-500.0,0.00019726,2]
[424373659,1780810245000,-500.0,0.00019726,2]
[424373663,1780810245000,-554.49,0.00019726,2]
[424373661,1780810245000,-895.93,0.00019726,2]
[424373662,1780810245000,-500.0,0.00019726,2]
[424373660,1780810245000,-500.0,0.00019726,2]
[424373664,1780810245000,-500.0,0.00019726,2]
[424373667,1780810245000,-500.0,0.00019726,2]
[424373666,1780810245000,-500.0,0.00019726,2]
[424373668,1780810245000,-500.0,0.00019726,2]
[424373665,1780810245000,-683.26,0.00019726,2]
[424373706,1780810245000,-500.0,0.00019726,2]
[424373700,1780810245000,-1237.16,0.00019726,2]
[424373703,1780810245000,-1117.6,0.00019726,2]
[424373742,1780810245000,-2610.31,0.00019726,2]
[424373740,1780810245000,-1092.87,0.00019726,2]
[424373738,1780810245000,-500.0,0.00019726,2]
[424373744,1780810245000,-500.0,0.00019726,2]
[424373743,1780810245000,-500.0,0.00019726,2]
[424373746,1780810245000,-500.0,0.00019726,2]
[424373748,1780810245000,-711.49,0.00019726,2]
[424373747,1780810245000,-500.0,0.00019726,2]
[424373745,1780810245000,-190.67373841,0.00019726,2]
[424373750,1780810245000,-500.0,0.00019726,2]
[424373749,1780810245000,-500.0,0.00019726,2]
[424373751,1780810245000,-500.0,0.00019726,2]
[424373754,1780810245000,-273.59582641,0.00019726,2]
[424373752,1780810245000,-515.22,0.00019726,2]
[424373741,1780810245000,-500.0,0.00019726,2]
[424373755,1780810245000,-500.86,0.00019726,2]
[424373758,1780810245000,-500.0,0.00019726,2]
[424373757,1780810245000,-500.0,0.00019726,2]
[424373759,1780810245000,-629.01,0.00019726,2]
[424373761,1780810245000,-540.82,0.00019726,2]
[424373760,1780810245000,-500.0,0.00019726,2]
[424373762,1780810245000,-500.0,0.00019726,2]
[424373763,1780810245000,-500.0,0.00019726,2]
[424373764,1780810245000,-500.0,0.00019726,2]
[424373767,1780810245000,-500.0,0.00019726,2]
[424373766,1780810245000,-500.0,0.00019726,2]
[424373769,1780810245000,-669.05,0.00019726,2]
[424373768,1780810245000,-507.53,0.00019726,2]
[424373705,1780810245000,-643.09,0.00019726,2]
[424373765,1780810245000,-500.0,0.00019726,2]
[424373756,1780810245000,-1635.28,0.00019726,2]
[424373737,1780810245000,-500.0,0.00019726,2]
[424373753,1780810245000,-500.0,0.00019726,2]
[424373734,1780810245000,-500.0,0.00019726,2]
[424373710,1780810245000,-501.25,0.00019726,2]
[424373739,1780810245000,-500.0,0.00019726,2]
[424373709,1780810245000,-500.0,0.00019726,2]
[424373707,1780810245000,-633.77,0.00019726,2]
[424373704,1780810245000,-713.88,0.00019726,2]
[424373711,1780810245000,-590.0,0.00019726,2]
[424373713,1780810245000,-500.0,0.00019726,2]
[424373714,1780810245000,-173.93650137,0.00019726,2]
[424373712,1780810245000,-1149.92,0.00019726,2]
[424373715,1780810245000,-500.0,0.00019726,2]
[424373716,1780810245000,-500.0,0.00019726,2]
[424373717,1780810245000,-500.0,0.00019726,2]
[424373719,1780810245000,-1876.79,0.00019726,2]
[424373718,1780810245000,-500.0,0.00019726,2]
[424373722,1780810245000,-1905.12,0.00019726,2]
[424373708,1780810245000,-1070.19,0.00019726,2]
[424373720,1780810245000,-500.0,0.00019726,2]
[424373721,1780810245000,-889.26,0.00019726,2]
[424373735,1780810245000,-500.0,0.00019726,2]
[424373733,1780810245000,-500.0,0.00019726,2]
[424373730,1780810245000,-500.0,0.00019726,2]
[424373732,1780810245000,-2781.01,0.00019726,2]
[424373729,1780810245000,-873.52,0.00019726,2]
[424373731,1780810245000,-500.0,0.00019726,2]
[424373736,1780810245000,-1492.81,0.00019726,2]
[424373726,1780810245000,-612.48,0.00019726,2]
[424373727,1780810245000,-500.0,0.00019726,2]
[424373724,1780810245000,-500.0,0.00019726,2]
[424373725,1780810245000,-318.75571363,0.00019726,2]
[424373723,1780810245000,-500.0,0.00019726,2]
[424373728,1780810245000,-500.0,0.00019726,2]
[424373826,1780810246000,-500.0,0.00019726,2]
[424373823,1780810246000,-903.59,0.00019726,2]